[Event "3rd Mersin Open 2018"]
[Site "Mersin"]
[Date "2018.09.12"]
[Round "4.7"]
[White "Kazimova, Narmin"]
[Black "Koksal, Ege"]
[Result "1/2-1/2"]
[ECO "A28"]
[WhiteElo "2264"]
[BlackElo "2367"]
[Annotator "ChessBase"]
[PlyCount "147"]
[EventDate "2018.09.09"]
[EventType "swiss"]
[EventCountry "TUR"]
[SourceTitle "playchess.com"]
[Source "ChessBase"]
[SourceQuality "1"]
[TimeControl "5400+30"]

1. c4 e5 2. Nc3 Nf6 3. Nf3 Nc6 4. e4 Bb4 5. d3 O-O 6. Be2 h6 7. O-O d6 8. a3 Bc5 9. b4 Bb6 10. Bd2 Bg4 11. Na4 Bxf3 12. Bxf3 Bd4 13. Rc1 Qd7 14. g3 a5 15. b5 Nd8 16. Bg2 Ne6 17. Kh1 Nc5 18. Bc3 Bxc3 19. Nxc3 Ne6 20. f4 c6 21. a4 Nd4 22. h3 Qe7 23. Kh2 Nd7 24. f5 Rfc8 25. Rb1 Kf8 26. Rb2 Ke8 27. h4 Kd8 28. Bh3 Rcb8 29. Kg2 Kc7 30. Qd2 f6 31. Rfb1 Nc5 32. Bg4 Qd7 33. Bd1 Rg8 34. h5 Kd8 35. Ne2 Nxe2 36. Qxe2 Ke7 37. Qe3 Rge8 38. Kh2 Kf8 39. Kg2 Qe7 40. Rc1 Rad8 41. Kh2 Rc8 42. Rcb1 Red8 43. bxc6 bxc6 44. Qd2 Ra8 45. Rb6 Qc7 46. Bc2 Ra6 47. R6b2 Raa8 48. Kh3 Ra7 49. Qc3 Na6 50. d4 Nb4 51. dxe5 dxe5 52. c5 Qf7 53. Qf3 Rad7 54. Bb3 Qe8 55. Be6 Rd3 56. Qg4 Re3 57. Rxb4 axb4 58. Rxb4 Rdd3 59. Kh4 Rxg3 60. Qxg3 Rxg3 61. Kxg3 Qxh5 62. Rb8+ Ke7 63. Rb7+ Kd8 64. Rd7+ Kc8 65. Rxg7+ Kb8 66. Bc4 Qd1 67. Rg8+ Ka7 68. Rg7+ Kb8 69. Rg8+ Kc7 70. Rg7+ Kd8 71. Rg8+ Ke7 72. Rg7+ Kf8 73. Rg8+ Ke7 74. Rg7+ 1/2-1/2

[Event "3rd Mersin Open 2018"]
[Site "Mersin"]
[Date "2018.09.12"]
[Round "4.8"]
[White "Gulsoy, Mustafa Alpago"]
[Black "Gasimov, Parviz"]
[Result "0-1"]
[ECO "C02"]
[WhiteElo "2061"]
[BlackElo "2341"]
[Annotator "ChessBase"]
[PlyCount "48"]
[EventDate "2018.09.09"]
[EventType "swiss"]
[EventCountry "TUR"]
[SourceTitle "playchess.com"]
[Source "ChessBase"]
[SourceQuality "1"]
[TimeControl "5400+30"]

1. e4 {[%emt 0:00:30]} e6 {[%emt 0:00:30]} 2. d4 {[%emt 0:00:00]} d5 {[%emt 0:00:30]} 3. e5 {[%emt 0:00:00]} c5 {[%emt 0:00:00]} 4. c3 {[%emt 0:00:00]} Nc6 {[%emt 0:00:00]} 5. Nf3 {[%emt 0:00:00]} Bd7 {[%emt 0:00:30]} 6. Na3 {[%emt 0:02:30]} cxd4 {[%emt 0:08:30]} 7. cxd4 {[%emt 0:00:00]} Bxa3 {[%emt 0:02:30]} 8. bxa3 {[%emt 0:00:00]} Qa5+ {[%emt 0:00:00]} 9. Qd2 {[%emt 0:00:30]} Nge7 {[%emt 0:05:00]} 10. Rb1 {[%emt 0:02:30]} b6 {[%emt 0:08:30]} 11. Bd3 {[%emt 0:02:30]} Nf5 {[%emt 0:16:30]} 12. Bxf5 {[%emt 0:03:30]} exf5 {[%emt 0:00:30]} 13. O-O {[%emt 0:00:30]} Qa6 {[%emt 0:06:30]} 14. Qg5 {[%emt 0:02:30]} O-O {[%emt 0:04:30]} 15. Qg3 {[%emt 0:05:30]} Kh8 {[%emt 0:05:30]} 16. Bf4 {[%emt 0:01:30]} Nd8 {[%emt 0:03:30]} 17. Ng5 {[%emt 0:03:30]} h6 {[%emt 0:11:30]} 18. Qh4 {[%emt 0:02:30]} Kg8 {[%emt 0:05:11]} 19. Rb3 {[%emt 0:02:30]} hxg5 {[%emt 0:12:55]} 20. Bxg5 {[%emt 0:00:30]} f4 {[%emt 0:00:01]} 21. g4 {[%emt 0:02:30]} Qe2 {[%emt 0:01:01]} 22. Bxf4 {[%emt 0:19:30]} Qxg4+ {[%emt 0:00:45]} 23. Qxg4 {[%emt 0:00:30]} Bxg4 {[%emt 0:00:16]} 24. Rg3 {[%emt 0:00:00]} Bf5 {[%emt 0:00:24]} 0-1

[Event "3rd Mersin Open 2018"]
[Site "Mersin"]
[Date "2018.09.12"]
[Round "4.9"]
[White "Olcum, Ahmet"]
[Black "Bacak, Muhammed Kaan"]
[Result "1/2-1/2"]
[ECO "A43"]
[WhiteElo "2302"]
[BlackElo "2126"]
[Annotator "ChessBase"]
[PlyCount "184"]
[EventDate "2018.09.09"]
[EventType "swiss"]
[EventCountry "TUR"]
[SourceTitle "playchess.com"]
[Source "ChessBase"]
[SourceQuality "1"]
[TimeControl "5400+30"]

1. d4 c5 2. d5 e6 3. Nc3 d6 4. e4 a6 5. a4 Nf6 6. Bc4 exd5 7. Nxd5 Nxd5 8. Bxd5 Be7 9. Nf3 O-O 10. O-O Nd7 11. Bb3 Qc7 12. Qe2 b6 13. Bf4 Ne5 14. Bd5 Rb8 15. Rfd1 Bf6 16. Bxe5 dxe5 17. Nd2 b5 18. axb5 axb5 19. c4 Bd7 20. Ra2 bxc4 21. Rda1 Qc8 22. h3 Be6 23. Nxc4 Bxd5 24. exd5 Qf5 25. Ne3 Qe4 26. Ra4 Rb4 27. Rxb4 cxb4 28. Qb5 Rd8 29. Qc6 h5 30. Ra8 Rxa8 31. Qxa8+ Kh7 32. Qa2 Bg5 33. Qb3 Kg6 34. d6 Bxe3 35. fxe3 Kf6 36. Kh2 h4 37. Qd1 Qa8 38. Qg4 Qb7 39. Qc4 Qd7 40. Qxh4+ Ke6 41. Qxb4 Qa7 42. Qd2 Qd7 43. Kg3 f5 44. h4 g6 45. Kf2 Qa4 46. g3 Kd7 47. Qc3 Qd1 48. Qc7+ Ke6 49. Qe7+ Kd5 50. Qf7+ Kc6 51. Qc7+ Kd5 52. Qa5+ Ke6 53. Qa6 Qd2+ 54. Qe2 Qxd6 55. g4 Qc6 56. gxf5+ gxf5 57. b3 Qh1 58. h5 e4 59. Qa6+ Ke5 60. Qa5+ Ke6 61. Qb6+ Ke5 62. Qc7+ Ke6 63. Qc6+ Ke5 64. Qe8+ Kf6 65. Qg6+ Ke5 66. Qg3+ Ke6 67. Qg5 Qh2+ 68. Ke1 Qc2 69. Qg6+ Ke5 70. Qg3+ Ke6 71. Qg8+ Kf6 72. Qc4 Qb1+ 73. Kd2 Kg5 74. Qc2 Qf1 75. Qd1 Qd3+ 76. Kc1 Qc3+ 77. Qc2 Qa1+ 78. Kd2 Qf1 79. Kc3 Kxh5 80. Kd4 Kg4 81. b4 Kf3 82. Qc5 Qd3+ 83. Ke5 f4 84. b5 Qxe3 85. Qc6 Ke2 86. b6 f3 87. Qb5+ Ke1 88. Qb1+ Ke2 89. b7 f2 90. b8=Q Qg3+ 91. Kxe4 Qg6+ 92. Kd4 Qxb1 1/2-1/2

[Event "3rd Mersin Open 2018"]
[Site "Mersin"]
[Date "2018.09.12"]
[Round "4.10"]
[White "Ersahin, Bulent"]
[Black "Guven, Oguz Kagan"]
[Result "1-0"]
[ECO "A05"]
[WhiteElo "2191"]
[BlackElo "2022"]
[Annotator "ChessBase"]
[PlyCount "147"]
[EventDate "2018.09.09"]
[EventType "swiss"]
[EventCountry "TUR"]
[SourceTitle "playchess.com"]
[Source "ChessBase"]
[SourceQuality "1"]
[TimeControl "5400+30"]

1. Nf3 Nf6 2. g3 b5 3. Bg2 Bb7 4. O-O e6 5. d3 d6 6. e4 Nbd7 7. Nbd2 Be7 8. a4 a6 9. Nb3 c5 10. Bd2 b4 11. a5 O-O 12. Re1 Qc7 13. Bf4 e5 14. Bg5 c4 15. Nbd2 cxd3 16. cxd3 Nc5 17. Nc4 h6 18. Bxf6 Bxf6 19. Rc1 Rad8 20. Nb6 Qe7 21. Qc2 Qe6 22. Nd2 Bg5 23. Rcd1 Bxd2 24. Qxd2 Qb3 25. d4 exd4 26. Qxd4 Rfe8 27. Rd2 Ne6 28. Qc4 Nc5 29. Qd4 Ne6 30. Qe3 Nc5 31. f3 Qxe3+ 32. Rxe3 d5 33. Rc2 d4 34. Re1 Nb3 35. Rc4 Nxa5 36. Rxb4 d3 37. Rd1 Re6 38. Na4 Rc6 39. Nc3 Rc4 40. Rb6 Rc6 41. Rxc6 Nxc6 42. Nd5 Ne5 43. f4 Nc4 44. b3 Bxd5 45. exd5 Na5 46. Rxd3 Rd6 47. b4 Nc6 48. Rb3 Nd4 49. Rb2 Rb6 50. Kf2 Kf8 51. Ke3 Rxb4 52. Rxb4 Nc2+ 53. Kd3 Nxb4+ 54. Kc4 Nc2 55. Kc5 Ke7 56. d6+ Kd7 57. Bc6+ Kd8 58. Bd5 f6 59. h4 Ne3 60. Be4 a5 61. Kd4 Nf1 62. g4 Nd2 63. Bc6 g5 64. fxg5 fxg5 65. h5 Nf1 66. Ke4 Nd2+ 67. Kf5 Nc4 68. Kg6 Ne5+ 69. Kxh6 Nxc6 70. Kg7 a4 71. h6 Nd4 72. h7 Kd7 73. h8=Q Kxd6 74. Qa8 1-0

[Event "3rd Mersin Open 2018"]
[Site "Mersin"]
[Date "2018.09.12"]
[Round "4.11"]
[White "Sulak, Yusuf"]
[Black "Ozcan, Berk"]
[Result "0-1"]
[ECO "A26"]
[WhiteElo "1625"]
[BlackElo "1617"]
[Annotator "NA"]
[PlyCount "108"]
[EventDate "2018.09.09"]
[EventType "swiss"]
[EventCountry "TUR"]
[SourceTitle "playchess.com"]
[Source "ChessBase"]
[SourceQuality "1"]
[TimeControl "5400+30"]

1. c4 Nf6 2. Nc3 g6 3. g3 Bg7 4. Bg2 O-O 5. e4 d6 6. Nge2 e5 7. O-O Nc6 8. d3 Be6 9. h3 Qd7 10. Kh2 Ne8 11. Be3 Nd4 12. Bxd4 exd4 13. Nd5 c6 14. Ndf4 Nc7 15. b4 f5 16. Nxe6 Nxe6 17. f4 Nc7 18. Qb3 Qe6 19. Rae1 Qf7 20. Ng1 Rae8 21. Nf3 Ne6 22. e5 dxe5 23. Nxe5 Bxe5 24. Rxe5 Ng7 25. Rfe1 Rxe5 26. Rxe5 Re8 27. Qb2 Rxe5 28. fxe5 Ne6 29. b5 f4 30. Qf2 fxg3+ 31. Qxg3 Qc7 32. bxc6 bxc6 33. h4 Kg7 34. h5 Nf8 35. Qf4 Nd7 36. h6+ Kg8 37. Qxd4 Qxe5+ 38. Qxe5 Nxe5 39. d4 Nxc4 40. Bxc6 Ne3 41. d5 Kf7 42. Kg3 Nf5+ 43. Kf4 Ke7 44. Kg5 Nd6 45. Ba4 Nf7+ 46. Kf4 Kd6 47. Bb3 Nxh6 48. Kg5 Ng8 49. Bc4 Ne7 50. Kh6 Nxd5 51. Kxh7 g5 52. Kh6 g4 53. Bf1 g3 54. Kg5 Ne3 0-1

[Event "3rd Mersin Open 2018"]
[Site "Mersin"]
[Date "2018.09.12"]
[Round "4.12"]
[White "Aladag, Begum"]
[Black "Hatirli, Ugur Can"]
[Result "0-1"]
[ECO "B26"]
[WhiteElo "1481"]
[BlackElo "1608"]
[Annotator "NA"]
[PlyCount "85"]
[EventDate "2018.09.09"]
[EventType "swiss"]
[EventCountry "TUR"]
[SourceTitle "playchess.com"]
[Source "ChessBase"]
[SourceQuality "1"]
[TimeControl "5400+30"]

1. e4 {[%emt 0:00:30]} c5 {[%emt 0:00:30]} 2. Nc3 {[%emt 0:00:00]} g6 {[%emt 0:00:30]} 3. g3 {[%emt 0:00:00]} Bg7 {[%emt 0:00:00]} 4. Bg2 {[%emt 0:00:00]} e6 {[%emt 0:00:00]} 5. d3 {[%emt 0:00:00]} Nc6 {[%emt 0:00:00]} 6. Be3 {[%emt 0:00:30]} Nd4 {[%emt 0:01:00]} 7. Qd2 {[%emt 0:01:30]} d6 {[%emt 0:01:30]} 8. Nd1 {[%emt 0:02:30]} Ne7 {[%emt 0:02:30]} 9. c3 {[%emt 0:01:30]} Ndc6 {[%emt 0:00:00]} 10. Bh6 {[%emt 0:01:30]} O-O {[%emt 0:00:00]} 11. h4 {[%emt 0:00:00]} f6 {[%emt 0:01:30]} 12. Bxg7 {[%emt 0:07:00]} Kxg7 {[%emt 0:00:30]} 13. h5 {[%emt 0:00:30]} g5 {[%emt 0:01:30]} 14. Nf3 {[%emt 0:01:30]} h6 {[%emt 0:00:00]} 15. Ne3 {[%emt 0:07:30]} b5 {[%emt 0:02:00]} 16. Ng4 {[%emt 0:02:30]} e5 {[%emt 0:04:30]} 17. Nfh2 {[%emt 0:02:30]} Be6 {[%emt 0:01:30]} 18. f4 {[%emt 0:02:30]} Nc8 {[%emt 0:04:30]} 19. Ke2 {[%emt 0:06:30]} b4 {[%emt 0:02:30]} 20. fxg5 {[%emt 0:01:30]} fxg5 {[%emt 0:00:30]} 21. Raf1 {[%emt 0:00:30]} Rxf1 {[%emt 0:03:30]} 22. Rxf1 {[%emt 0:00:30]} Nb6 {[%emt 0:04:30]} 23. Rf6 {[%emt 0:04:30]} Qxf6 {[%emt 0:03:30]} 24. Nxf6 {[%emt 0:00:00]} Kxf6 {[%emt 0:00:00]} 25. Qe1 {[%emt 0:02:00]} Kg7 {[%emt 0:01:00]} 26. a3 {[%emt 0:04:30]} bxa3 {[%emt 0:00:30]} 27. bxa3 {[%emt 0:00:30]} c4 {[%emt 0:00:30]} 28. dxc4 {[%emt 0:02:30]} Nxc4 {[%emt 0:00:30]} 29. Qd1 {[%emt 0:00:30]} Rb8 {[%emt 0:01:30]} 30. g4 {[%emt 0:10:30]} Rb2+ {[%emt 0:00:30]} 31. Kf3 {[%emt 0:00:30]} Rxg2 {[%emt 0:05:30]} 32. Qa4 {[%emt 0:03:30]} Rxh2 {[%emt 0:00:30]} 33. Qxc6 {[%emt 0:00:30]} Rh3+ {[%emt 0:00:30]} 34. Kg2 {[%emt 0:00:00]} Rxc3 {[%emt 0:00:30]} 35. Qc7+ {[%emt 0:00:00]} Bf7 {[%emt 0:00:30]} 36. Qxa7 {[%emt 0:00:30]} Rxa3 {[%emt 0:00:00]} 37. Qd7 {[%emt 0:00:30]} Ra2+ {[%emt 0:01:00]} 38. Kg3 {[%emt 0:00:30]} Re2 {[%emt 0:00:30]} 39. Qc6 {[%emt 0:01:30]} Nd2 {[%emt 0:02:30]} 40. Qa6 {[%emt 0:02:30]} Re3+ {[%emt 0:00:30]} 41. Kf2 {[%emt 0:00:30]} Rxe4 {[%emt 0:00:30]} 42. Qxd6 {[%emt 0:00:30]} Rf4+ {[%emt 0:00:30]} 43. Kg3 {[%emt 0:02:30]} 0-1

[Event "3rd Mersin Open 2018"]
[Site "Mersin"]
[Date "2018.09.12"]
[Round "4.13"]
[White "Gultas, Cinar"]
[Black "Altug, Sertac"]
[Result "1/2-1/2"]
[ECO "A17"]
[WhiteElo "1352"]
[BlackElo "1633"]
[Annotator "NA"]
[PlyCount "26"]
[EventDate "2018.09.09"]
[EventType "swiss"]
[EventCountry "TUR"]
[SourceTitle "playchess.com"]
[Source "ChessBase"]
[SourceQuality "1"]
[TimeControl "5400+30"]

1. c4 {[%emt 0:00:30]} e6 {[%emt 0:00:30]} 2. Nc3 {[%emt 0:00:00]} d5 {[%emt 0:00:00]} 3. cxd5 {[%emt 0:00:00]} exd5 {[%emt 0:00:00]} 4. d4 {[%emt 0:00:00]} c6 {[%emt 0:00:00]} 5. g3 {[%emt 0:00:00]} Bd6 {[%emt 0:01:00]} 6. Bg2 {[%emt 0:00:30]} Nf6 {[%emt 0:01:30]} 7. Nf3 {[%emt 0:02:30]} O-O {[%emt 0:02:30]} 8. O-O {[%emt 0:00:00]} Bf5 {[%emt 0:01:30]} 9. Re1 {[%emt 0:03:00]} h6 {[%emt 0:05:30]} 10. Nd2 {[%emt 0:05:30]} Re8 {[%emt 0:02:30]} 11. f3 {[%emt 0:02:30]} Qb6 {[%emt 0:06:30]} 12. Nb3 {[%emt 0:00:30]} Bg6 {[%emt 0:20:30]} 13. e4 {[%emt 0:00:30]} Bf5 {[%emt 0:00:30]} 1/2-1/2

[Event "3rd Mersin Open 2018"]
[Site "Mersin"]
[Date "2018.09.11"]
[Round "4.14"]
[White "Imamverdiyev, Faiq"]
[Black "Subasi, Fidel"]
[Result "*"]
[ECO "C01"]
[WhiteElo "1604"]
[BlackElo "1659"]
[Annotator "NA RC"]
[PlyCount "107"]
[EventDate "2018.09.09"]
[EventType "swiss"]
[EventCountry "TUR"]
[SourceTitle "playchess.com"]
[Source "ChessBase"]
[SourceQuality "1"]
[TimeControl "5400+30"]

1. e4 {[%emt 0:00:00]} e6 {[%emt 0:05:30]} 2. d4 {[%emt 0:00:00]} d5 {[%emt 0:00:30]} 3. exd5 {[%emt 0:00:30]} exd5 {[%emt 0:00:30]} 4. Bd3 {[%emt 0:00:30]} c5 {[%emt 0:00:30]} 5. c3 {[%emt 0:01:30]} Nf6 {[%emt 0:05:30]} 6. h3 {[%emt 0:01:30]} Nc6 {[%emt 0:10:30]} 7. Nf3 {[%emt 0:00:30]} Bd6 {[%emt 0:00:30]} 8. O-O {[%emt 0:00:30]} O-O {[%emt 0:00:30]} 9. Bg5 {[%emt 0:00:30]} h6 {[%emt 0:00:30]} 10. Bh4 {[%emt 0:01:30]} Re8 {[%emt 0:04:30]} 11. Re1 {[%emt 0:00:30]} Rxe1+ {[%emt 0:03:30]} 12. Qxe1 {[%emt 0:02:30]} Be6 {[%emt 0:03:30]} 13. Nbd2 {[%emt 0:02:30]} cxd4 {[%emt 0:00:30]} 14. Nxd4 {[%emt 0:00:30]} Nxd4 {[%emt 0:00:30]} 15. cxd4 {[%emt 0:00:30]} Be7 {[%emt 0:15:30]} 16. Rc1 {[%emt 0:03:30]} Qb6 {[%emt 0:15:30]} 17. Nb3 {[%emt 0:02:30]} a5 {[%emt 0:07:30]} 18. Qd2 {[%emt 0:02:30]} Ne4 {[%emt 0:03:40]} 19. Bxe4 {[%emt 0:02:30]} Bxh4 {[%emt 0:00:20]} 20. Bf3 {[%emt 0:01:30]} Bg5 {[%emt 0:00:51]} 21. Qd1 {[%emt 0:02:30]} Bxc1 {[%emt 0:02:08]} 22. Qxc1 {[%emt 0:00:00]} Qd6 {[%emt 0:02:13]} 23. a3 {[%emt 0:03:00]} b6 {[%emt 0:00:27]} 24. Qe3 {[%emt 0:03:30]} Rc8 {[%emt 0:00:45]} 25. Nc1 {[%emt 0:00:30]} Bf5 {[%emt 0:01:28]} 26. Ne2 {[%emt 0:00:30]} Qe6 {[%emt 0:03:56]} 27. Qb3 {[%emt 0:03:30]} Be4 {[%emt 0:02:12]} 28. Nf4 {[%emt 0:00:30]} Qd6 {[%emt 0:00:34]} 29. Ne2 {[%emt 0:02:30]} Bxf3 {[%emt 0:00:43]} 30. Qxf3 {[%emt 0:01:30]} Rc2 {[%emt 0:01:14]} 31. g3 {[%emt 0:00:30]} Qe6 {[%emt 0:00:44]} 32. Nc3 {[%emt 0:02:30]} Rc1+ 33. Kh2 {[%emt 0:00:30]} Qe1 {[%emt 0:01:57]} 34. h4 {[%emt 0:00:30]} Qg1+ {[%emt 0:01:47]} 35. Kh3 {[%emt 0:00:00]} Qf1+ {[%emt 0:00:29]} 36. Kg4 {[%emt 0:01:00]} Qe1 {[%emt 0:01:10]} 37. Nxd5 {[%emt 0:05:30]} Qe6+ {[%emt 0:00:58]} 38. Qf5 {[%emt 0:02:30]} Rc4 {[%emt 0:02:01]} 39. Qxe6 {[%emt 0:02:30]} fxe6 {[%emt 0:00:03]} 40. Nxb6 {[%emt 0:00:00]} Rxd4+ {[%emt 0:00:09]} 41. Kf3 {[%emt 0:00:00]} Rd2 {[%emt 0:00:29]} 42. Nc4 {[%emt 0:00:30]} Rc2 43. Nxa5 {[%emt 0:00:30]} Rxb2 {[%emt 0:00:16]} 44. Nc4 {[%emt 0:00:30]} Rc2 {[%emt 0:00:14]} 45. Ne3 {[%emt 0:00:30]} Rc3 {[%emt 0:00:33]} 46. Kf4 {[%emt 0:00:30]} Rxa3 {[%emt 0:00:11]} 47. Ke5 {[%emt 0:03:30]} Kf7 {[%emt 0:01:08]} 48. g4 {[%emt 0:01:30]} Ra2 {[%emt 0:01:17]} 49. f4 {[%emt 0:00:30]} h5 {[%emt 0:01:04]} 50. gxh5 {[%emt 0:05:30]} Ra5+ {[%emt 0:00:23]} 51. Ke4 {[%emt 0:00:30]} Rxh5 {[%emt 0:00:39]} 52. Ng2 {[%emt 0:00:30]} Kf6 {[%emt 0:00:30]} 53. Kf3 {[%emt 0:00:30]} Ra5 {[%emt 0:00:30]} 54. Kg4 {[%emt 0:00:00]} *